Cogmind - Beta 9.4 @@@ ROGUE MODE // 2020.01.21 @ 00:25:58 // AFD2019/Pay2Buy Player: Cookie Result: Self-destructed Performance ------------- Evolutions (1) 500 Regions Visited (4) 800 Robots Destroyed (39) 195 Value Destroyed (777) 777 Prototype IDs (0) 0 Alien Tech Used (0) 0 Bonus (-18) -18 TOTAL SCORE: 2254 Bonus ------- Friendly Fire -18 Cogmind --------- Core Integrity 308/400 Matter 188/300 Energy 30/140 System Corruption 0% Temperature Cool (0) Movement Hovering (56) Location -9/Mines Parts ------- > --- POWER (1) -------- Light Deuterium Engine > --- PROPULSION (2) --- Hover Unit Airjet > --- UTILITY (4) ------ Improved Signal Interpreter ECM Suite Hacking Suite > --- WEAPON (2) ------- (None) > --- INVENTORY (10) --- Rocket Launcher Peak State ------------ > --- POWER ------------ Light Ion Engine > --- PROPULSION ------- Hover Unit Airjet > --- UTILITY ---------- Advanced Sensor Array Improved Signal Interpreter ECM Suite Hacking Suite > --- WEAPON ----------- Mini Grenade Launcher Plasma Cutter > --- INVENTORY -------- Rocket Launcher [Rating: 18] Favorites ----------- Power Light Ion Engine Engine Light Ion Engine Propulsion Hover Unit Hover Unit Hover Unit Utility Improved Signal Interpreter Device Improved Sensor Array Processor Improved Signal Interpreter Hackware Hacking Suite Weapon Mini Grenade Launcher Launcher Mini Grenade Launcher Special Weapon Plasma Cutter Build | -11 -10 -10 -9 -9 ------- Run | Scr Mat Min Mat Min Slots Evolved 2 | . . . 2 . Power . | . . . . . Propulsion . | . . . . . Utility 2 | . . . 2 . Weapon . | . . . . . Parts Attached 1 | . . . . 1 Power . | . . . . . Engine . | . . . . . Core . | . . . . . Reactor . | . . . . . Propulsion . | . . . . . Treads . | . . . . . Leg . | . . . . . Wheel . | . . . . . Hover . | . . . . . Flight . | . . . . . Utility . | . . . . . Device . | . . . . . Storage . | . . . . . Processor . | . . . . . Hackware . | . . . . . Protection . | . . . . . Artifact . | . . . . . Weapon 1 | . . . . 1 Energy Gun . | . . . . . Energy Cannon . | . . . . . Ballistic Gun . | . . . . . Ballistic Cannon . | . . . . . Launcher . | . . . . . Special Weapon 1 | . . . . 1 Impact Weapon . | . . . . . Slashing Weapon . | . . . . . Piercing Weapon . | . . . . . Special Melee Weapon . | . . . . . Unidentified Prototypes . | . . . . . Parts Lost 8 | . 1 3 . 4 Power 2 | . . 1 . 1 Propulsion 1 | . 1 . . . Utility 2 | . . 1 . 1 Weapon 3 | . . 1 . 2 Highest Loss Streak 4 | . 1 2 . 4 Average Slot Usage (%) 82 | . 84 82 77 83 Engine 13 | . 14 14 11 10 Hover 13 | . 13 14 11 12 Device 15 | . 14 12 22 21 Processor 13 | . 14 14 11 11 Hackware 3 | . . . 11 11 Launcher 12 | . 14 14 11 10 Special Weapon 10 | . 14 12 . 7 Naked Turns . | . . . . . Heaviest Build 7 | 6 6 6 6 7 Greatest Support 15 | 8 8 6 6 15 Greatest Overweight (x) 1 | . 1 . . 1 Average Overweight (x) . | . . . . . Largest Inventory Capacity 10 | 10 10 10 10 10 Average Capacity 10 | 10 10 10 10 10 Most Carried 2 | . . 1 2 2 Average Carried . | . . . 2 1 Final Capacity 10 | 10 10 10 10 10 Final Carried 2 | . . 1 2 1 Class Distribution -------------------- 100% | Mutant Dominant Class ---------------- Mutant | -10/Materials Mutant | -10/Mines Mutant | -9/Materials Mutant | -9/Mines Resources | -11 -10 -10 -9 -9 ----------- Run | Scr Mat Min Mat Min Matter Collected 468 | 130 196 54 88 . Remotely . | . . . . . Salvage Created 629 | 130 289 116 72 22 Parts . | . . . . . Haulers Intercepted 1 | . 1 . . . Recyclers Shooed . | . . . . . Parts Field Recycled . | . . . . . Retrieved Matter . | . . . . . Parts Self-Destructed . | . . . . . Prevented . | . . . . . Kills | -11 -10 -10 -9 -9 ------- Run | Scr Mat Min Mat Min Combat Hostiles Destroyed 29 | . 10 10 1 8 AOE 29 | . 10 10 1 8 Classes Destroyed 11 | 2 6 . 2 1 Worker 2 | . 2 . . . Builder 1 | . . . 1 . Tunneler 1 | 1 . . . . Hauler 1 | . 1 . . . Recycler 1 | 1 . . . . Operator 1 | . 1 . . . Watcher 3 | . 1 . 2 . Swarmer 12 | . 3 6 . 3 Grunt 11 | . 7 4 . . Sentry 1 | . . . 1 . Assembled 5 | . . . . 5 Best Kill Streak 9 | 2 9 3 3 6 Combat Bots Only 7 | . 7 3 1 5 Max Kills in Single Turn 3 | 1 3 2 1 2 Gunslinging . | . . . . . Exploded 2 | . 2 2 1 2 Melee . | . . . . . Uniques/NPCs Destroyed . | . . . . . Combat | -11 -10 -10 -9 -9 -------- Run | Scr Mat Min Mat Min Damage Taken 495 | . 148 95 14 238 Core 151 | . 36 23 . 92 Absorbed by Shields . | . . . . . Core Remaining (%) 88 | 100 . 76 . . Volleys Fired 50 | 3 19 12 7 9 Largest 1 | 1 1 1 1 1 Hottest 30 | 20 30 30 30 30 Shots Fired 50 | 3 19 12 7 9 Gun . | . . . . . Cannon . | . . . . . Launcher 41 | . 16 12 7 6 Special 9 | 3 3 . . 3 Kinetic . | . . . . . Thermal 9 | 3 3 . . 3 Explosive 41 | . 16 12 7 6 Electromagnetic . | . . . . . Robot Hit Streak 8 | 3 4 8 6 2 Robot Miss Streak 2 | . 2 . 1 2 Penetration Max . | . . . . . Secondary Targets . | . . . . . Shots Hit Robots 29 | 3 12 6 6 2 Core Hits 64 | 3 23 15 10 13 Critical Hits 1 | . 1 . . . Critical Kills 1 | . 1 . . . Critical Parts Destroyed . | . . . . . Melee Attacks . | . . . . . Impact . | . . . . . Slashing . | . . . . . Piercing . | . . . . . Sneak Attacks . | . . . . . Combat Hostiles . | . . . . . Follow-up Attacks . | . . . . . Damage Inflicted 2622 | 32 953 787 314 536 Guns . | . . . . . Cannons . | . . . . . Explosions 2566 | . 929 787 314 536 Melee . | . . . . . Ramming . | . . . . . Kinetic . | . . . . . Thermal 194 | 32 24 138 . . Explosive 2428 | . 929 649 314 536 Electromagnetic . | . . . . . Impact . | . . . . . Slashing . | . . . . . Piercing . | . . . . . Highest Corruption 2 | . 2 2 . . Average Corruption 2 | . 2 2 . . Corruption Purged . | . . . . . Effects 6 | . . 6 . . Message Errors 2 | . . 2 . . Heat Flow Errors 1 | . . 1 . . Energy Discharges 1 | . . 1 . . Data Loss (minor) 1 | . . 1 . . Targeting Errors 1 | . . 1 . . Overload Shots . | . . . . . Overflow Damage 110 | . 40 66 . 4 Projectiles . | . . . . . Explosions 110 | . 40 66 . 4 Melee . | . . . . . Knockbacks . | . . . . . Impact . | . . . . . Kinetic . | . . . . . Secondary . | . . . . . Self-Inflicted Damage 98 | . 45 47 . 6 Shots 3 | . 1 1 . 1 Rammed . | . . . . . Targets Rammed . | . . . . . Kicked . | . . . . . Crushed . | . . . . . Highest Temperature 126 | . 20 126 2 9 Average Temperature 25 | . 9 53 2 9 Received Heat Transfer 89 | . 42 18 9 20 Siege Activations . | . . . . . Robots Corrupted . | . . . . . Combat Hostiles . | . . . . . Parts Fried . | . . . . . Impact Corruptions . | . . . . . Robots Melted . | . . . . . Combat Hostiles . | . . . . . Parts Melted . | . . . . . Heat Transferred 335 | 111 74 150 . . Parts Sabotaged . | . . . . . Parts Stolen . | . . . . . Parts Stripped . | . . . . . Power Chain Reactions . | . . . . . Missiles Intercepted . | . . . . . Alert | -11 -10 -10 -9 -9 ------- Run | Scr Mat Min Mat Min Peak Influence 425 | 10 425 340 230 174 Average Influence 211 | 5 277 222 140 157 Maximum Alert Level 2 | . 2 1 1 . Low Security (%) 46 | 100 22 24 85 100 Level 1 50 | . 61 75 14 . Level 2 3 | . 15 . . . Level 3 . | . . . . . Level 4 . | . . . . . Level 5 . | . . . . . High Security . | . . . . . Max Security . | . . . . . Squads Dispatched 4 | . 2 . 2 . Investigation 1 | . . . 1 . Extermination . | . . . . . Reinforcement 3 | . 2 . 1 . Assault . | . . . . . Garrison . | . . . . . Intercept . | . . . . . Construction Impeded . | . . . . . Haulers Reinforced . | . . . . . Stealth | -11 -10 -10 -9 -9 --------- Run | Scr Mat Min Mat Min Distress Signals 2 | . 1 . 1 . Communications Jammed . | . . . . . Distress Signals . | . . . . . Times Spotted 40 | . 15 5 5 15 Peak Tracking Total 8 | . 4 2 2 8 Tactical Retreats 2 | . 1 . . 1 Traps | -11 -10 -10 -9 -9 ------- Run | Scr Mat Min Mat Min Traps Triggered 1 | . 1 . . . Indirectly . | . . . . . Trap Hack Attempts . | . . . . . Triggered . | . . . . . Disarmed . | . . . . . Reprogrammed . | . . . . . Reused . | . . . . . Traps Extracted . | . . . . . Installed . | . . . . . Triggered . | . . . . . Machines | -11 -10 -10 -9 -9 ---------- Run | Scr Mat Min Mat Min Machines Disabled 10 | . 4 4 2 . Max in Single Turn 4 | . 2 4 1 . Machines Sabotaged . | . . . . . Garrisons Compromised . | . . . . . Overloaded Fab Kills . | . . . . . Fab Network Shutdowns . | . . . . . Hacking | -11 -10 -10 -9 -9 --------- Run | Scr Mat Min Mat Min Machines Accessed 6 | . 4 1 1 . Terminals 5 | . 4 . 1 . Fabricators . | . . . . . Repair Stations . | . . . . . Recycling Units . | . . . . . Scanalyzers . | . . . . . Garrison Access . | . . . . . Total Hacks 14 | . 8 1 5 . Successful 9 | . 6 1 2 . Failed 5 | . 2 . 3 . Catastrophic 1 | . 1 . . . Database Lockouts . | . . . . . Manual 12 | . 7 . 5 . Terminals 13 | . 8 . 5 . Fabricators . | . . . . . Repair Stations . | . . . . . Recycling Units . | . . . . . Scanalyzers . | . . . . . Garrison Access . | . . . . . Terminal Hacks 4 | . 2 1 1 . Open Door 1 | . . 1 . . Terminal Index 2 | . 1 . 1 . Locate Traps 1 | . 1 . . . Fabricator Hacks . | . . . . . Repair Station Hacks . | . . . . . Recycling Unit Hacks . | . . . . . Scanalyzer . | . . . . . Garrison Access Hacks . | . . . . . Unauthorized Hacks 11 | . 9 . 2 . Terminals 5 | . 4 . 1 . Botnet 5 | . 4 . 1 . Fabricators . | . . . . . Repair Stations . | . . . . . Recycling Units . | . . . . . Scanalyzers . | . . . . . Garrison Access . | . . . . . Data Cores Recovered . | . . . . . Used . | . . . . . Hacking Detections 5 | . 4 . 1 . Full Trace Events 1 | . . . 1 . Feedback Events . | . . . . . Feedback Blocked . | . . . . . Robot Schematics Acquired . | . . . . . Robots Built . | . . . . . Matter . | . . . . . Time . | . . . . . Total Robot Build Rating . | . . . . . Part Schematics Acquired . | . . . . . Parts Built . | . . . . . Matter . | . . . . . Time . | . . . . . Total Part Build Rating . | . . . . . Parts Repaired . | . . . . . Time . | . . . . . Parts Recycled . | . . . . . Recycled Matter . | . . . . . Retrieved Matter . | . . . . . Retrieved Components . | . . . . . Parts Scanalyzed . | . . . . . Part Schematics Acquired . | . . . . . Parts Damaged . | . . . . . Bothacking | -11 -10 -10 -9 -9 ------------ Run | Scr Mat Min Mat Min Used RIF Installer . | . . . . . Robots Hacked . | . . . . . Non-combat . | . . . . . Combat . | . . . . . Robot Hacks Applied . | . . . . . Relay Couplers Released . | . . . . . Robots Rewired . | . . . . . Allies Hacked . | . . . . . Hacks Repelled . | . . . . . Allies | -11 -10 -10 -9 -9 -------- Run | Scr Mat Min Mat Min Total Allies . | . . . . . Largest Group . | . . . . . Highest-Rated Group . | . . . . . Highest-Rated Ally . | . . . . . Total Orders . | . . . . . Ally Attacks . | . . . . . Total Damage . | . . . . . Kills . | . . . . . Allies Corrupted . | . . . . . Allies Melted . | . . . . . Intel | -11 -10 -10 -9 -9 ------- Run | Scr Mat Min Mat Min Robot Analysis Total . | . . . . . Derelict Logs Recovered . | . . . . . Drone Launches . | . . . . . Drone Recoveries . | . . . . . Exploration | -11 -10 -10 -9 -9 ------------- Run | Scr Mat Min Mat Min Turns Passed 1349 | 27 331 605 132 254 Spaces Moved 1322 | 30 383 540 163 206 Core 6 | . 6 . . . Treads . | . . . . . Legs . | . . . . . Wheels . | . . . . . Hover 1316 | 30 377 540 163 206 Flight . | . . . . . Fastest Speed 56 | 60 60 60 60 56 Average Speed 63 | 60 60 60 60 80 Slowest Speed 120 | 60 100 60 60 120 Overloaded Moves . | . . . . . Propulsion Burnouts . | . . . . . Robots Hopped . | . . . . . Cave-ins Triggered . | . . . . . Exploration Rate (%) 48 | 3 67 99 17 54 Regions Visited 4 Branch Regions 2 Pre-discovered Areas . | . . . . . Known Exits Taken 4 | 1 1 1 1 . Unknown Exits Taken . | . . . . . Scrap Searched . | . . . . . Spaces Dug . | . . . . . Terrain Destroyed 311 | . 91 128 36 56 Melee . | . . . . . Projectile . | . . . . . AOE 311 | . 91 128 36 56 Actions | -11 -10 -10 -9 -9 --------- Run | Scr Mat Min Mat Min Total 1771 | 32 459 808 190 282 Wait 400 | . 58 256 20 66 Move 1318 | 29 382 539 162 206 Hop . | . . . . . Pick Up 1 | . . 1 . . Fast Attach . | . . . . . Attach 1 | . . . . 1 Detach 1 | . . . 1 . Swap . | . . . . . Drop . | . . . . . Fire 50 | 3 19 12 7 9 Melee . | . . . . . Ram . | . . . . . Kick . | . . . . . Crush . | . . . . . Escape Stasis . | . . . . . Rewire . | . . . . . Trap . | . . . . . Miscellaneous . | . . . . . Route ------- -11/Scrapyard -10/Materials (discovered 3 exits: *Mat x2 / *Min) -10/Mines (discovered 2 exits: *Mat x2) -9/Materials -9/Mines History --------- Turn | Location | Event 4 | -11/Scrapyard | Discovered new exit (range 13) 27 | -11/Scrapyard | Identified exit to Materials 28 | -11/Scrapyard | Entered Materials 125 | -10/Materials | Destroyed 7 combat bots 129 | -10/Materials | Discovered new exit (range 14) 197 | -10/Materials | Discovered new exit (range 12) 206 | -10/Materials | Identified exit to Materials 308 | -10/Materials | Discovered new exit (range 16) 314 | -10/Materials | Build established: Mutant 359 | -10/Materials | Identified exit to Mines 359 | -10/Materials | Entered Mines 395 | -10/Mines | Discovered exit to Materials (range 9) 403 | -10/Mines | Met a Derelict who couldn't figure out how to use a Trap Extractor 555 | -10/Mines | Discovered exit to Materials (range 12) 583 | -10/Mines | Received a Rocket Launcher from a helpful Derelict 768 | -10/Mines | Found a hidden stash of uninstalled traps 964 | -10/Mines | Entered Materials 964 | -9/Materials | Evolved 2 slots: Utility x2 1081 | -9/Materials | Discovered new exit (range 14) 1094 | -9/Materials | Identified exit to Mines 1096 | -9/Materials | Entered Mines 1280 | -9/Mines | Assembled infested the area 1350 | -9/Mines | Self-destructed Last Messages --------------- [Purchased: Airjet] 01328_ as-18332 destroyed. 01330_ Destroyed Asb. Hover Unit. 01330_ as-21134 destroyed. 01330_ Lgt. Ion Engine destroyed. 01330_ Destroyed Lgt. Ion Engine. 01332_ Destroyed Asb. F-torch. 01332_ as-22238 destroyed. 01332_ as-74371 destroyed. 01334_ Adv. Sensor Array destroyed. 01334_ as-44463 destroyed. 01335_ Plasma Cutter destroyed. 01335_ Mni. Grenade Launcher destroyed. 01341_ The unstable cave ceiling collapses. 01341_ Seismic Survey Station disabled. 01342_ The unstable cave ceiling collapses. 01344_ D-53 Grenadier destroyed. 01346_ The unstable cave ceiling collapses. [Purchased: Lgt. Deuterium Engine] 01350_ The unstable cave ceiling collapses. Map ----- +----------------------------------------------------+ | | | | | | | | | | | | | | | | | | | ?????????????????????????????????????????????????? | | ?????????????????????????????????????????????????? | | ?????????????????????????????????????????????????? | | ?????????????????????????????????????????????????? | | ?????????????????????????????????????????????????? | | ?????????????????????????????????????????????????? | | ?????????????????????????????????????????????????? | | ?????????????????????????????????????????????????? | | ?????????????????????????????????????????????????? | | ?????????????????????????????????????????????????? | | ?????????????????????????????????????????????????? | | ?????????????????????????????????????????????????? | | ?????????????????????????????????????????????????? | | ?????????????????????????????????????????????????? | | ???????????????????????####??????????????????????? | | ??????????????????????## ##?????????????????????? | | ????????????????####### @ #?????????????????????? | | ????????????????# a a a a ##????????????????????? | | ????????????a% %% #####% a ##???????????????????? | | ???????????##?????????## ##??????????????????? | | ???????????????????????##% #??????????????????? | | ????????????????????????# ##???????????????### | | ???????????????????????## ##?????????????# # | | ??????????????????????## #????????????? | | ??????????????????????# aa "" #???????????## | | ??????????????????????# " #???????????# | | ??????????????????????### "" #???????????# | | ??????????????????????## % ##??????????# | | ??????????????????????# # ###????????# ? | | ?????????????????????## #????????# ?? | | ?????????????????????# # #???????# #?? | | ?????????????????????# ######??????## #?? | | ?????????????????????## % # #???????????# %"#?? | | ?????????????????????### #??????????## " #?? | | ???????????????????????# # # #????????### #?? | | ???????????????????????# ##?###??### ##?? | | ???????????????????????# ##### #### #??? | | ???????????????????????## #?# ##?? | | ????????????????????????# #?# % #?? | | ????????????????????????## #### ## #?? | | ?????????????????????????# #?## #?? | +----------------------------------------------------+ Best States ------------- Heat Dissipation 28 Energy Generation 14 Energy Capacity 140 Matter Stores 280 Matter Capacity 300 Sight Range 16 Robot Scan Range 16 Terrain Scan Density 10 ECM Strength 1 Evasion (%) 53 Offensive Hacking 10 Item Schematics ----------------- None Robot Schematics ------------------ None Fabricated ------------ Nothing Alien Tech Used ----------------- None Achievements -------------- Dramatic Entrance Challenges ------------ None Cogshop Purchases (14) ------------------------ Lgt. Ion Engine (599) Imp. Hover Unit (874) Imp. Sensor Array (699) Imp. Signal Interpreter (699) Mni. Grenade Launcher (1049) Plasma Cutter (699) Hover Unit (767) Lgt. Ion Engine (627) Adv. Sensor Array (767) Plasma Cutter (692) Hacking Suite (1123) ECM Suite (575) Airjet (1055) Lgt. Deuterium Engine (1019) Game ------ Seed BladeMetafiberSegregator Manual? 0 Play Time 00:22:37 Cumulative 44.9 hours Start 2020.01.21 @ 00:05:00 End 2020.01.21 @ 00:25:58 Sessions 1 Manual Loads 0 Difficulty Rogue Special Mode AFD2019/Pay2Buy Game No. 72 Rogue 72 Adventurer 0 Explorer 0 Win Type - Total 1 Types 1/0/0/0/0/0/0 Lore% 33 Gallery% 35 Achievement% 32 Wizard Run 0 Options --------- ASCII 0 Keyboard 0 Movement Mouse Keybinds 0 Fullscreen 1 Font 18/SmallcapsGlow Map View 76x50 Tactical HUD 1 Map Filters NONE Filters NONE Steam 1 RUN: 3306e286-1f39-4901-8739-6dd9dc270ef5